[Event "24th European Women Club Cup 2019"]
[Site "Ulcinj"]
[Date "2019.11.13"]
[Round "4.20"]
[White "Blagojevic, Tijana"]
[Black "Manova, Ivana"]
[Result "1-0"]
[ECO "C50"]
[WhiteElo "2169"]
[BlackElo "1795"]
[Annotator "NA"]
[PlyCount "85"]
[EventDate "2019.11.10"]
[EventType "team-tourn"]
[EventCountry "MNE"]
[SourceTitle "playchess.com"]
[Source "ChessBase"]
[SourceQuality "1"]
[WhiteTeam "Jelica PEP"]
[BlackTeam "Asseco SEE"]
[TimeControl "40/5400+30:1800+30"]

1. e4 {[%emt 0:00:00]} e5 {[%emt 0:00:00]} 2. Nf3 {[%emt 0:00:00]} Nc6 {[%emt 0:00:00]} 3. Bc4 {[%emt 0:00:00]} Bc5 {[%emt 0:00:01]} 4. O-O {[%emt 0:00:00]} Nf6 {[%emt 0:00:51]} 5. d3 {[%emt 0:00:02]} d6 {[%emt 0:02:37]} 6. a4 {[%emt 0:00:40]} a6 {[%emt 0:03:35]} 7. c3 {[%emt 0:04:41]} Ba7 {[%emt 0:04:32]} 8. Na3 {[%emt 0:00:17]} h6 {[%emt 0:04:23]} 9. Nc2 {[%emt 0:00:15]} O-O {[%emt 0:02:02]} 10. Be3 {[%emt 0:01:16]} Be6 {[%emt 0:04:56]} 11. Bxe6 {[%emt 0:01:29]} fxe6 {[%emt 0:00:17]} 12. Bxa7 {[%emt 0:01:32]} Rxa7 {[%emt 0:02:43]} 13. a5 {[%emt 0:01:27]} Qe8 {[%emt 0:05:07]} 14. Ne3 {[%emt 0:04:51]} Qh5 {[%emt 0:22:34]} 15. b4 {[%emt 0:11:23]} Ne7 {[%emt 0:13:18]} 16. Nd2 {[%emt 0:07:05]} Qg5 {[%emt 0:05:48]} 17. Qb3 {[%emt 0:01:37]} d5 {[%emt 0:01:28]} 18. exd5 {[%emt 0:04:08]} exd5 {[%emt 0:05:07]} 19. Ne4 {[%emt 0:01:02]} Nxe4 {[%emt 0:06:37]} 20. dxe4 {[%emt 0:00:20]} Kh8 {[%emt 0:01:56]} 21. Nxd5 {[%emt 0:03:14]} Ng6 {[%emt 0:02:00]} 22. Qc2 {[%emt 0:05:56]} Nh4 {[%emt 0:07:21]} 23. Ne3 {[%emt 0:01:04]} Rf4 {[%emt 0:01:46]} 24. Kh1 {[%emt 0:01:38]} Qh5 {[%emt 0:01:44]} 25. Qd1 {[%emt 0:06:51]} Qg5 {[%emt 0:00:54]} 26. g3 {[%emt 0:08:23]} Nf3 {[%emt 0:00:10]} 27. gxf4 {[%emt 0:05:06]} Qxf4 {[%emt 0:00:30]} 28. Kg2 {[%emt 0:00:36]} Nh4+ {[%emt 0:00:41]} 29. Kh3 {[%emt 0:00:12]} Nf3 {[%emt 0:00:47]} 30. Rh1 {[%emt 0:02:24]} Ng5+ {[%emt 0:00:36]} 31. Kg2 {[%emt 0:00:29]} Qxe4+ {[%emt 0:00:11]} 32. f3 {[%emt 0:01:08]} Qxe3 {[%emt 0:00:19]} 33. Re1 {[%emt 0:03:25]} Qxc3 {[%emt 0:00:27]} 34. Rc1 {[%emt 0:01:29]} Qxb4 {[%emt 0:01:02]} 35. Rxc7 {[%emt 0:01:04]} Ra8 {[%emt 0:00:28]} 36. Rxe5 {[%emt 0:00:36]} Rf8 {[%emt 0:00:35]} 37. Qa1 {[%emt 0:10:14]} Qd2+ {[%emt 0:00:26]} 38. Kh1 {[%emt 0:00:14]} Rg8 {[%emt 0:00:38]} 39. Re8 {[%emt 0:01:11]} Nf7 {[%emt 0:00:31]} 40. Rxf7 {[%emt 0:00:00]} Qg5 {[%emt 0:00:00]} 41. Rff8 {[%emt 0:01:10]} Rxf8 {[%emt 0:01:25]} 42. Rxf8+ {[%emt 0:00:03]} Kh7 {[%emt 0:00:05]} 43. Qb1+ {[%emt 0:00:10]} 1-0

[Event "24th European Women Club Cup 2019"]
[Site "Ulcinj"]
[Date "2019.11.13"]
[Round "4.21"]
[White "Lahav, Michal"]
[Black "Ushenina, Anna"]
[Result "1/2-1/2"]
[ECO "A06"]
[WhiteElo "2221"]
[BlackElo "2439"]
[Annotator "NA"]
[PlyCount "87"]
[EventDate "2019.11.10"]
[EventType "team-tourn"]
[EventCountry "MNE"]
[SourceTitle "playchess.com"]
[Source "ChessBase"]
[SourceQuality "1"]
[WhiteTeam "Rishon Lezion"]
[BlackTeam "Ugra"]
[TimeControl "40/5400+30:1800+30"]

1. Nf3 {[%emt 0:00:00]} d5 {[%emt 0:02:01]} 2. b3 {[%emt 0:00:00]} c5 {[%emt 0:00:38]} 3. g3 {[%emt 0:00:58]} Nc6 {[%emt 0:00:56]} 4. Bb2 {[%emt 0:00:14]} d4 {[%emt 0:03:59]} 5. Bg2 {[%emt 0:06:30]} g6 {[%emt 0:05:58]} 6. O-O {[%emt 0:04:15]} Bg7 {[%emt 0:02:00]} 7. d3 {[%emt 0:13:56]} Nf6 {[%emt 0:01:17]} 8. c3 {[%emt 0:06:49]} O-O {[%emt 0:01:41]} 9. cxd4 {[%emt 0:00:32]} cxd4 {[%emt 0:00:09]} 10. Nbd2 {[%emt 0:00:29]} Nd5 {[%emt 0:06:02]} 11. Rc1 {[%emt 0:05:18]} h6 {[%emt 0:13:44]} 12. Rxc6 {[%emt 0:17:25]} bxc6 {[%emt 0:00:28]} 13. Nxd4 {[%emt 0:00:04]} Bb7 {[%emt 0:07:57]} 14. Qa1 {[%emt 0:00:14]} e5 {[%emt 0:14:52]} 15. N4f3 {[%emt 0:00:52]} f6 {[%emt 0:01:23]} 16. d4 {[%emt 0:07:17]} exd4 {[%emt 0:02:47]} 17. Bxd4 {[%emt 0:17:23]} Qe7 {[%emt 0:02:39]} 18. e4 {[%emt 0:00:02]} Nc7 {[%emt 0:00:23]} 19. Nh4 {[%emt 0:00:02]} Kh7 {[%emt 0:14:40]} 20. Qd1 {[%emt 0:13:21]} Qd7 {[%emt 0:03:10]} 21. Be3 {[%emt 0:00:16]} Rad8 {[%emt 0:03:56]} 22. Bf3 {[%emt 0:02:32]} Bc8 {[%emt 0:03:25]} 23. Qc2 {[%emt 0:00:23]} Ne6 {[%emt 0:03:14]} 24. e5 {[%emt 0:01:10]} f5 {[%emt 0:00:01]} 25. Qxc6 {[%emt 0:01:28]} Qxc6 {[%emt 0:00:41]} 26. Bxc6 {[%emt 0:00:01]} Bxe5 {[%emt 0:01:30]} 27. Nc4 {[%emt 0:00:42]} Bb8 {[%emt 0:01:44]} 28. Re1 {[%emt 0:00:01]} Rf6 {[%emt 0:01:30]} 29. Bg2 {[%emt 0:01:02]} Rf7 {[%emt 0:00:50]} 30. Na5 {[%emt 0:01:07]} Re8 {[%emt 0:00:36]} 31. Nc6 {[%emt 0:00:33]} Bb7 {[%emt 0:00:33]} 32. Nxb8 {[%emt 0:00:19]} Bxg2 {[%emt 0:00:05]} 33. Kxg2 {[%emt 0:00:18]} Rxb8 {[%emt 0:00:04]} 34. Bxa7 Re8 {[%emt 0:01:26]} 35. Be3 {[%emt 0:01:14]} f4 {[%emt 0:00:28]} 36. Bd2 {[%emt 0:00:20]} fxg3 {[%emt 0:00:36]} 37. hxg3 {[%emt 0:00:17]} Ra7 {[%emt 0:00:27]} 38. a4 {[%emt 0:00:42]} Nc7 {[%emt 0:00:31]} 39. Rh1 {[%emt 0:00:28]} Nd5 {[%emt 0:00:26]} 40. Nf3 {[%emt 0:00:00]} h5 {[%emt 0:00:00]} 41. g4 {[%emt 0:04:57]} Nf6 {[%emt 0:00:34]} 42. gxh5 {[%emt 0:00:24]} Nxh5 {[%emt 0:00:42]} 43. Rh4 {[%emt 0:01:13]} Kg8 {[%emt 0:02:20]} 44. a5 {[%emt 0:05:03]} 1/2-1/2

[Event "24th European Women Club Cup 2019"]
[Site "Ulcinj"]
[Date "2019.11.13"]
[Round "4.22"]
[White "Girya, Olga"]
[Black "Reprun, Nadejda"]
[Result "1-0"]
[ECO "D12"]
[WhiteElo "2476"]
[BlackElo "1989"]
[Annotator "ChessBase"]
[PlyCount "111"]
[EventDate "2019.11.10"]
[EventType "team-tourn"]
[EventCountry "MNE"]
[SourceTitle "playchess.com"]
[Source "ChessBase"]
[SourceQuality "1"]
[WhiteTeam "Ugra"]
[BlackTeam "Rishon Lezion"]
[TimeControl "40/5400+30:1800+30"]

1. d4 {[%emt 0:00:00]} d5 {[%emt 0:00:00]} 2. c4 {[%emt 0:00:00]} c6 {[%emt 0:00:00]} 3. Nf3 {[%emt 0:00:00]} Nf6 {[%emt 0:00:00]} 4. e3 {[%emt 0:00:00]} Bf5 {[%emt 0:00:04]} 5. Nc3 {[%emt 0:00:07]} e6 {[%emt 0:00:17]} 6. Nh4 {[%emt 0:00:05]} Bg4 {[%emt 0:02:40]} 7. Qb3 {[%emt 0:01:09]} Qb6 {[%emt 0:01:31]} 8. f3 {[%emt 0:07:20]} Bh5 {[%emt 0:01:27]} 9. g4 {[%emt 0:00:16]} Bg6 {[%emt 0:00:30]} 10. Nxg6 {[%emt 0:00:58]} hxg6 {[%emt 0:00:57]} 11. g5 {[%emt 0:09:16]} Ng8 {[%emt 0:08:55]} 12. Bd2 {[%emt 0:12:18]} Bd6 {[%emt 0:05:21]} 13. f4 {[%emt 0:04:09]} Qxb3 {[%emt 0:04:57]} 14. axb3 {[%emt 0:00:01]} Ne7 {[%emt 0:08:16]} 15. c5 {[%emt 0:01:33]} Bc7 {[%emt 0:00:05]} 16. b4 {[%emt 0:00:03]} Kd7 {[%emt 0:03:27]} 17. Kf2 {[%emt 0:12:04]} Nf5 {[%emt 0:04:55]} 18. Bd3 {[%emt 0:02:28]} Na6 {[%emt 0:04:37]} 19. Ne2 {[%emt 0:01:49]} Nb8 {[%emt 0:02:14]} 20. Ng3 {[%emt 0:07:58]} Ke7 {[%emt 0:00:44]} 21. Nxf5+ {[%emt 0:06:08]} gxf5 {[%emt 0:02:15]} 22. h4 {[%emt 0:01:56]} a6 {[%emt 0:01:33]} 23. b5 {[%emt 0:02:00]} cxb5 {[%emt 0:00:05]} 24. Bxb5 {[%emt 0:00:03]} Nc6 {[%emt 0:01:30]} 25. Be2 {[%emt 0:00:04]} f6 {[%emt 0:09:09]} 26. gxf6+ {[%emt 0:01:29]} gxf6 {[%emt 0:01:33]} 27. h5 {[%emt 0:05:52]} Rag8 {[%emt 0:01:57]} 28. b4 {[%emt 0:02:06]} e5 {[%emt 0:04:09]} 29. Bf3 {[%emt 0:07:52]} Ke6 {[%emt 0:03:45]} 30. Rag1 {[%emt 0:02:00]} Ne7 {[%emt 0:07:17]} 31. Rb1 {[%emt 0:06:13]} Nc6 {[%emt 0:04:22]} 32. b5 {[%emt 0:03:41]} axb5 {[%emt 0:00:08]} 33. Rxb5 {[%emt 0:00:03]} Nd8 {[%emt 0:06:04]} 34. Rd1 {[%emt 0:00:42]} e4 {[%emt 0:02:09]} 35. Be2 {[%emt 0:00:04]} Rg7 {[%emt 0:00:04]} 36. Rg1 {[%emt 0:01:24]} Rxg1 {[%emt 0:02:33]} 37. Kxg1 {[%emt 0:00:01]} Rh7 {[%emt 0:01:52]} 38. Kf2 {[%emt 0:00:25]} Rg7 {[%emt 0:00:59]} 39. Rb1 {[%emt 0:00:44]} Rg8 {[%emt 0:00:59]} 40. Bc3 {[%emt 0:00:00]} Rg7 {[%emt 0:00:00]} 41. Ra1 {[%emt 0:07:23]} Rg8 {[%emt 0:03:22]} 42. Ra8 {[%emt 0:01:55]} Rg7 {[%emt 0:01:36]} 43. Bb5 {[%emt 0:01:09]} Nc6 {[%emt 0:08:44]} 44. Bxc6 {[%emt 0:11:38]} bxc6 {[%emt 0:00:33]} 45. Ra6 {[%emt 0:00:09]} Rh7 {[%emt 0:02:16]} 46. Rxc6+ {[%emt 0:00:05]} Kd7 {[%emt 0:00:05]} 47. Rxf6 {[%emt 0:00:03]} Rxh5 {[%emt 0:00:13]} 48. Kg2 {[%emt 0:02:35]} Ke7 {[%emt 0:01:22]} 49. Ra6 {[%emt 0:00:26]} Kd8 {[%emt 0:04:50]} 50. Bb4 {[%emt 0:05:24]} Kc8 {[%emt 0:02:41]} 51. Rf6 {[%emt 0:00:32]} Kb7 {[%emt 0:01:08]} 52. Be1 {[%emt 0:01:02]} Ka7 {[%emt 0:02:40]} 53. Rf7 {[%emt 0:00:19]} Kb8 {[%emt 0:01:08]} 54. Rd7 {[%emt 0:01:24]} Rh8 {[%emt 0:01:12]} 55. Rxd5 {[%emt 0:00:08]} Rf8 {[%emt 0:00:04]} 56. Rd7 {[%emt 0:00:11]} 1-0

[Event "24th European Women Club Cup 2019"]
[Site "Ulcinj"]
[Date "2019.11.13"]
[Round "4.23"]
[White "Federovski, Adi"]
[Black "Guseva, Marina"]
[Result "0-1"]
[ECO "B90"]
[WhiteElo "2005"]
[BlackElo "2366"]
[Annotator "NA"]
[PlyCount "90"]
[EventDate "2019.11.10"]
[EventType "team-tourn"]
[EventCountry "MNE"]
[SourceTitle "playchess.com"]
[Source "ChessBase"]
[SourceQuality "1"]
[WhiteTeam "Rishon Lezion"]
[BlackTeam "Ugra"]
[TimeControl "40/5400+30:1800+30"]

1. e4 {[%emt 0:00:00]} c5 {[%emt 0:00:00]} 2. Nf3 {[%emt 0:00:00]} d6 {[%emt 0:00:00]} 3. d4 {[%emt 0:00:00]} cxd4 {[%emt 0:00:00]} 4. Nxd4 {[%emt 0:00:00]} Nf6 {[%emt 0:00:00]} 5. Nc3 {[%emt 0:00:00]} a6 {[%emt 0:00:03]} 6. h3 {[%emt 0:00:00]} e5 {[%emt 0:00:08]} 7. Nb3 Be6 {[%emt 0:03:31]} 8. f4 {[%emt 0:03:17]} g6 {[%emt 0:00:05]} 9. Be2 {[%emt 0:01:49]} Nbd7 {[%emt 0:00:38]} 10. Be3 {[%emt 0:01:57]} Rc8 {[%emt 0:05:35]} 11. O-O {[%emt 0:03:18]} Be7 {[%emt 0:16:46]} 12. Qd2 {[%emt 0:10:50]} exf4 {[%emt 0:02:37]} 13. Bxf4 {[%emt 0:02:14]} O-O {[%emt 0:00:07]} 14. Rad1 {[%emt 0:02:02]} Ne5 {[%emt 0:00:56]} 15. Kh1 {[%emt 0:05:37]} b5 {[%emt 0:09:51]} 16. a3 {[%emt 0:00:49]} Qc7 {[%emt 0:10:26]} 17. Bg5 {[%emt 0:08:11]} Ne8 {[%emt 0:00:11]} 18. Bh6 {[%emt 0:00:24]} Ng7 {[%emt 0:00:05]} 19. Nd4 {[%emt 0:01:08]} Rfd8 {[%emt 0:01:31]} 20. Nd5 {[%emt 0:04:06]} Bxd5 {[%emt 0:00:42]} 21. exd5 {[%emt 0:00:07]} Ne8 {[%emt 0:01:06]} 22. Qf4 {[%emt 0:02:34]} Bf6 {[%emt 0:03:51]} 23. Bg4 {[%emt 0:07:37]} Nxg4 {[%emt 0:03:24]} 24. Qxg4 {[%emt 0:04:11]} Rd7 {[%emt 0:06:10]} 25. Rde1 {[%emt 0:03:56]} Bxd4 {[%emt 0:10:09]} 26. Qxd4 {[%emt 0:00:07]} Re7 {[%emt 0:00:03]} 27. Qg4 {[%emt 0:07:35]} Rb8 {[%emt 0:03:40]} 28. Qd4 {[%emt 0:16:33]} Re5 {[%emt 0:05:24]} 29. c3 {[%emt 0:02:28]} Qe7 {[%emt 0:02:59]} 30. Rxe5 dxe5 {[%emt 0:00:11]} 31. Qd3 {[%emt 0:05:24]} Rd8 {[%emt 0:06:33]} 32. Rd1 {[%emt 0:01:57]} Nd6 {[%emt 0:00:20]} 33. Be3 {[%emt 0:03:27]} Nc4 {[%emt 0:03:00]} 34. Bc1 {[%emt 0:00:44]} e4 {[%emt 0:01:19]} 35. Qd4 {[%emt 0:00:49]} e3 {[%emt 0:01:55]} 36. b3 {[%emt 0:01:44]} e2 {[%emt 0:00:05]} 37. Re1 {[%emt 0:00:12]} Nd6 {[%emt 0:00:04]} 38. c4 {[%emt 0:02:06]} Nf5 {[%emt 0:01:26]} 39. Qf2 {[%emt 0:01:27]} bxc4 {[%emt 0:00:20]} 40. bxc4 {[%emt 0:00:00]} Qe4 {[%emt 0:00:00]} 41. Bg5 {[%emt 0:20:03]} Re8 {[%emt 0:03:40]} 42. Qf4 {[%emt 0:03:46]} Qd3 {[%emt 0:12:58]} 43. Qd2 {[%emt 0:03:36]} Ng3+ {[%emt 0:00:57]} 44. Kg1 {[%emt 0:00:35]} Qxc4 {[%emt 0:00:04]} 45. d6 {[%emt 0:02:59]} Qc5+ {[%emt 0:00:07]} 0-1

[Event "24th European Women Club Cup 2019"]
[Site "Ulcinj"]
[Date "2019.11.13"]
[Round "4.24"]
[White "Kovanova, Baira"]
[Black "Vardi, Shlomit"]
[Result "1-0"]
[ECO "B06"]
[WhiteElo "2344"]
[BlackElo "1935"]
[Annotator "NA"]
[PlyCount "57"]
[EventDate "2019.11.10"]
[EventType "team-tourn"]
[EventCountry "MNE"]
[SourceTitle "playchess.com"]
[Source "ChessBase"]
[SourceQuality "1"]
[WhiteTeam "Ugra"]
[BlackTeam "Rishon Lezion"]
[TimeControl "40/5400+30:1800+30"]

1. e4 {[%emt 0:00:00]} d6 {[%emt 0:00:00]} 2. d4 {[%emt 0:00:00]} g6 {[%emt 0:00:00]} 3. Nc3 {[%emt 0:00:00]} Bg7 {[%emt 0:00:00]} 4. Nf3 {[%emt 0:00:00]} c6 {[%emt 0:02:19]} 5. Bd3 {[%emt 0:00:16]} Nd7 {[%emt 0:00:35]} 6. Be3 {[%emt 0:00:07]} e5 {[%emt 0:00:55]} 7. Qd2 {[%emt 0:01:54]} a6 {[%emt 0:06:33]} 8. dxe5 {[%emt 0:03:47]} Nxe5 {[%emt 0:02:56]} 9. Nxe5 {[%emt 0:01:46]} dxe5 {[%emt 0:00:04]} 10. Na4 {[%emt 0:05:10]} Nf6 {[%emt 0:03:41]} 11. Nb6 {[%emt 0:02:49]} Rb8 {[%emt 0:00:05]} 12. Rd1 {[%emt 0:02:01]} Nd7 {[%emt 0:07:09]} 13. Qb4 {[%emt 0:06:27]} Qe7 {[%emt 0:00:30]} 14. Qc3 {[%emt 0:00:30]} Nxb6 {[%emt 0:00:30]} 15. Bxb6 {[%emt 0:05:03]} Bd7 {[%emt 0:07:02]} 16. O-O {[%emt 0:03:16]} Rc8 {[%emt 0:00:43]} 17. Bc5 {[%emt 0:02:10]} Qf6 {[%emt 0:04:29]} 18. a4 {[%emt 0:04:05]} Bf8 {[%emt 0:06:36]} 19. Bxf8 {[%emt 0:02:26]} Rxf8 {[%emt 0:00:07]} 20. f4 {[%emt 0:00:22]} Qe7 {[%emt 0:11:26]} 21. fxe5 {[%emt 0:01:51]} c5 {[%emt 0:03:19]} 22. Bc4 {[%emt 0:05:05]} Bxa4 {[%emt 0:10:39]} 23. Rf6 {[%emt 0:00:30]} b5 {[%emt 0:08:28]} 24. Bd5 {[%emt 0:01:30]} b4 {[%emt 0:09:57]} 25. Qg3 {[%emt 0:03:26]} c4 {[%emt 0:00:30]} 26. Rdf1 {[%emt 0:00:30]} Qa7+ {[%emt 0:00:30]} 27. Kh1 {[%emt 0:00:39]} Rc7 {[%emt 0:10:12]} 28. e6 {[%emt 0:00:30]} Re7 29. Rxf7 1-0

[Event "24th European Women Club Cup 2019"]
[Site "Ulcinj"]
[Date "2019.11.13"]
[Round "4.25"]
[White "Len, Irina"]
[Black "Rapport, Jovana"]
[Result "1/2-1/2"]
[ECO "E19"]
[WhiteElo "2036"]
[BlackElo "2379"]
[Annotator "NA"]
[PlyCount "145"]
[EventDate "2019.11.10"]
[EventType "team-tourn"]
[EventCountry "MNE"]
[SourceTitle "playchess.com"]
[Source "ChessBase"]
[SourceQuality "1"]
[WhiteTeam "Hertzeliya"]
[BlackTeam "MNE Woman Chess"]
[TimeControl "40/5400+30:1800+30"]

1. d4 {[%emt 0:00:00]} Nf6 {[%emt 0:00:00]} 2. c4 {[%emt 0:00:00]} e6 {[%emt 0:00:41]} 3. Nf3 {[%emt 0:00:00]} b6 {[%emt 0:00:10]} 4. g3 {[%emt 0:00:16]} Bb7 {[%emt 0:00:06]} 5. Bg2 {[%emt 0:00:04]} Be7 {[%emt 0:00:07]} 6. O-O {[%emt 0:00:15]} O-O {[%emt 0:00:07]} 7. Nc3 {[%emt 0:00:30]} Ne4 {[%emt 0:00:12]} 8. Qc2 {[%emt 0:00:41]} Nxc3 {[%emt 0:00:07]} 9. Qxc3 {[%emt 0:01:14]} c5 {[%emt 0:00:07]} 10. dxc5 {[%emt 0:03:05]} bxc5 {[%emt 0:00:36]} 11. Rd1 {[%emt 0:00:55]} d6 12. Bf4 {[%emt 0:02:07]} Qb6 {[%emt 0:01:29]} 13. Bg5 {[%emt 0:02:26]} Nc6 {[%emt 0:06:35]} 14. Bxe7 {[%emt 0:08:58]} Nxe7 {[%emt 0:00:13]} 15. Rac1 {[%emt 0:00:03]} Rfd8 {[%emt 0:05:30]} 16. Rd2 {[%emt 0:00:42]} a5 {[%emt 0:00:55]} 17. Qe3 {[%emt 0:03:20]} Rab8 {[%emt 0:02:33]} 18. Qf4 {[%emt 0:05:47]} Ng6 {[%emt 0:02:11]} 19. Qe3 {[%emt 0:04:33]} a4 {[%emt 0:00:36]} 20. h4 {[%emt 0:00:12]} Bxf3 {[%emt 0:04:13]} 21. Bxf3 {[%emt 0:17:07]} Ne5 {[%emt 0:00:15]} 22. Be4 {[%emt 0:02:15]} Qb4 {[%emt 0:07:02]} 23. Rdc2 {[%emt 0:02:42]} f5 {[%emt 0:01:13]} 24. Bg2 {[%emt 0:00:14]} Re8 {[%emt 0:00:08]} 25. h5 {[%emt 0:03:16]} h6 {[%emt 0:04:05]} 26. f4 {[%emt 0:00:30]} Ng4 {[%emt 0:01:54]} 27. Qd3 {[%emt 0:01:24]} Nf6 {[%emt 0:01:52]} 28. Bf3 {[%emt 0:00:25]} Red8 {[%emt 0:04:29]} 29. Kg2 {[%emt 0:03:00]} Qb6 {[%emt 0:01:11]} 30. Qa3 {[%emt 0:01:15]} Qa6 {[%emt 0:04:06]} 31. Rd1 {[%emt 0:13:56]} Rb4 {[%emt 0:01:03]} 32. Qe3 {[%emt 0:02:52]} Kf7 {[%emt 0:00:22]} 33. Qd3 {[%emt 0:01:04]} Rdb8 {[%emt 0:11:48]} 34. Rdd2 {[%emt 0:07:27]} Ke7 {[%emt 0:03:30]} 35. Kf2 {[%emt 0:06:29]} R8b6 {[%emt 0:03:17]} 36. Ke1 {[%emt 0:00:19]} Qc8 {[%emt 0:01:59]} 37. e4 {[%emt 0:03:24]} fxe4 {[%emt 0:05:21]} 38. Bxe4 {[%emt 0:00:07]} Qb8 {[%emt 0:00:01]} 39. Qe2 {[%emt 0:02:57]} Nxe4 {[%emt 0:01:54]} 40. Qxe4 {[%emt 0:00:00]} Rxb2 {[%emt 0:00:00]} 41. Qg6 {[%emt 0:01:06]} Rb1+ {[%emt 0:00:56]} 42. Kf2 {[%emt 0:00:30]} Qf8 {[%emt 0:09:36]} 43. Qg4 {[%emt 0:06:33]} Qf6 {[%emt 0:02:02]} 44. Qf3 {[%emt 0:03:37]} Qa1 {[%emt 0:05:41]} 45. Qa8 {[%emt 0:05:41]} Rf1+ {[%emt 0:03:00]} 46. Kg2 {[%emt 0:00:50]} Rh1 {[%emt 0:03:26]} 47. Rf2 {[%emt 0:03:12]} Qg1+ {[%emt 0:03:57]} 48. Kf3 {[%emt 0:00:09]} Qd1+ {[%emt 0:00:13]} 49. Rce2 {[%emt 0:01:07]} Rb2 {[%emt 0:07:49]} 50. Qe4 {[%emt 0:02:13]} Rxe2 {[%emt 0:03:07]} 51. Rxe2 {[%emt 0:00:02]} Qf1+ {[%emt 0:00:28]} 52. Ke3 {[%emt 0:00:58]} Qb1 {[%emt 0:01:40]} 53. Qc6 {[%emt 0:01:17]} Qc1+ {[%emt 0:05:08]} 54. Kf3 {[%emt 0:05:13]} Qf1+ {[%emt 0:01:28]} 55. Ke3 {[%emt 0:00:35]} Qc1+ {[%emt 0:02:30]} 56. Kf3 {[%emt 0:00:10]} Rf1+ {[%emt 0:01:50]} 57. Kg4 {[%emt 0:02:40]} Qd1 {[%emt 0:11:58]} 58. Qc7+ {[%emt 0:00:13]} Kf6 {[%emt 0:00:01]} 59. Qd8+ {[%emt 0:00:12]} Kf7 {[%emt 0:00:01]} 60. Qd7+ {[%emt 0:00:36]} Kg8 {[%emt 0:00:19]} 61. Qxe6+ {[%emt 0:01:22]} Kh7 {[%emt 0:00:58]} 62. Qe4+ {[%emt 0:01:11]} Kg8 {[%emt 0:01:52]} 63. Qe6+ {[%emt 0:00:32]} Kh7 {[%emt 0:00:21]} 64. Kf5 {[%emt 0:00:45]} Qd3+ {[%emt 0:00:27]} 65. Re4 {[%emt 0:00:35]} Rb1 {[%emt 0:01:07]} 66. Qg6+ {[%emt 0:01:27]} Kg8 {[%emt 0:00:14]} 67. Qe8+ {[%emt 0:00:40]} Kh7 {[%emt 0:00:01]} 68. g4 {[%emt 0:00:29]} d5 {[%emt 0:01:18]} 69. Qg6+ {[%emt 0:00:46]} Kh8 {[%emt 0:00:00]} 70. Qe8+ {[%emt 0:00:58]} Kh7 {[%emt 0:00:01]} 71. Qg6+ {[%emt 0:00:27]} Kh8 {[%emt 0:00:01]} 72. Qe8+ {[%emt 0:00:53]} Kh7 {[%emt 0:00:00]} 73. Qg6+ {[%emt 0:00:43]} 1/2-1/2

[Event "24th European Women Club Cup 2019"]
[Site "Ulcinj"]
[Date "2019.11.13"]
[Round "4.26"]
[White "Milovic, Aleksandra"]
[Black "Haitovich, Avital"]
[Result "1-0"]
[ECO "A00"]
[WhiteElo "2183"]
[BlackElo "1998"]
[Annotator "NA"]
[PlyCount "101"]
[EventDate "2019.11.10"]
[EventType "team-tourn"]
[EventCountry "MNE"]
[SourceTitle "playchess.com"]
[Source "ChessBase"]
[SourceQuality "1"]
[WhiteTeam "MNE Woman Chess"]
[BlackTeam "Hertzeliya"]
[TimeControl "40/5400+30:1800+30"]

1. Nc3 {[%emt 0:00:00]} c5 {[%emt 0:00:00]} 2. Nf3 {[%emt 0:00:00]} d6 {[%emt 0:00:04]} 3. d4 {[%emt 0:00:31]} cxd4 {[%emt 0:00:21]} 4. Nxd4 {[%emt 0:00:33]} Nf6 {[%emt 0:00:13]} 5. Bg5 {[%emt 0:00:28]} Nbd7 {[%emt 0:02:03]} 6. Qd2 {[%emt 0:04:52]} h6 {[%emt 0:07:34]} 7. Bh4 {[%emt 0:00:45]} g6 {[%emt 0:04:14]} 8. O-O-O {[%emt 0:14:24]} Bg7 {[%emt 0:01:06]} 9. e4 {[%emt 0:01:03]} O-O {[%emt 0:10:18]} 10. Be2 {[%emt 0:04:36]} a6 {[%emt 0:04:11]} 11. g4 {[%emt 0:08:14]} Nc5 {[%emt 0:17:36]} 12. f3 {[%emt 0:07:15]} b5 {[%emt 0:03:51]} 13. g5 {[%emt 0:16:29]} hxg5 {[%emt 0:01:58]} 14. Bxg5 {[%emt 0:00:46]} Ne6 {[%emt 0:03:27]} 15. Nxe6 {[%emt 0:08:31]} Bxe6 {[%emt 0:00:57]} 16. Nd5 {[%emt 0:05:13]} Bxd5 {[%emt 0:03:24]} 17. exd5 {[%emt 0:00:08]} Rc8 {[%emt 0:02:54]} 18. Kb1 {[%emt 0:04:33]} Rc5 {[%emt 0:02:10]} 19. Bxf6 {[%emt 0:03:05]} Bxf6 {[%emt 0:00:10]} 20. h4 {[%emt 0:02:49]} Qc8 {[%emt 0:13:02]} 21. h5 {[%emt 0:01:28]} Qf5 {[%emt 0:01:58]} 22. hxg6 {[%emt 0:02:52]} fxg6 {[%emt 0:02:43]} 23. Bd3 {[%emt 0:05:37]} Qe5 {[%emt 0:00:12]} 24. c3 {[%emt 0:00:12]} Bg7 {[%emt 0:05:26]} 25. Bxg6 {[%emt 0:02:07]} Rxf3 {[%emt 0:02:18]} 26. Bh7+ {[%emt 0:00:04]} Kf8 {[%emt 0:01:08]} 27. Rhe1 {[%emt 0:01:04]} Qf4 {[%emt 0:03:55]} 28. Qe2 {[%emt 0:01:30]} Bf6 {[%emt 0:01:15]} 29. Qe6 {[%emt 0:01:43]} Qg5 {[%emt 0:01:07]} 30. Rg1 {[%emt 0:01:02]} Rg3 {[%emt 0:00:18]} 31. Rxg3 {[%emt 0:00:28]} Qxg3 {[%emt 0:00:02]} 32. Rf1 {[%emt 0:00:10]} Qg7 {[%emt 0:01:57]} 33. Bd3 {[%emt 0:02:26]} Qf7 {[%emt 0:00:58]} 34. Qd7 {[%emt 0:00:48]} Rxd5 {[%emt 0:03:30]} 35. Bc2 {[%emt 0:00:13]} e6 {[%emt 0:00:30]} 36. Qc8+ {[%emt 0:00:11]} Ke7 {[%emt 0:00:22]} 37. Qxa6 {[%emt 0:00:28]} Qg7 {[%emt 0:00:41]} 38. Qb7+ {[%emt 0:00:16]} Kd8 {[%emt 0:00:26]} 39. Qb8+ {[%emt 0:00:28]} Ke7 {[%emt 0:00:17]} 40. Rh1 {[%emt 0:00:00]} Qg2 {[%emt 0:00:00]} 41. Qa7+ {[%emt 0:06:00]} Kf8 {[%emt 0:04:15]} 42. Rg1 {[%emt 0:01:28]} Qe2 {[%emt 0:11:35]} 43. a3 {[%emt 0:09:54]} Rg5 {[%emt 0:13:51]} 44. Qb8+ {[%emt 0:02:17]} Kf7 {[%emt 0:00:27]} 45. Qc7+ {[%emt 0:00:24]} Ke8 {[%emt 0:03:00]} 46. Rh1 {[%emt 0:05:53]} Qg2 {[%emt 0:00:17]} 47. Rh6 {[%emt 0:04:31]} Qf1+ {[%emt 0:00:50]} 48. Ka2 {[%emt 0:00:05]} Rg1 {[%emt 0:00:31]} 49. Bg6+ {[%emt 0:03:06]} Rxg6 {[%emt 0:00:25]} 50. Rxg6 {[%emt 0:00:02]} Qf5 {[%emt 0:00:18]} 51. Rg8# {[%emt 0:00:16]} 1-0